[Event "Holiday Invitational-GM 2019"]
[Site "Charlotte"]
[Date "2019.12.29"]
[Round "6.5"]
[White "Balakrishnan, Praveen"]
[Black "Korley, Kassa"]
[Result "1/2-1/2"]
[ECO "D02"]
[WhiteElo "2466"]
[BlackElo "2432"]
[Annotator "ChessBase"]
[PlyCount "43"]
[EventDate "2019.12.26"]
[EventType "tourn"]
[EventCountry "USA"]
[SourceTitle "playchess.com"]
[Source "ChessBase"]
[SourceQuality "1"]
[TimeControl "5400+30"]

1. d4 {[%emt 0:03:25]} e6 {[%emt 0:00:00]} 2. Nf3 {[%emt 0:00:26]} d5 {[%emt 0:00:00]} 3. Bf4 {[%emt 0:00:23]} Nf6 {[%emt 0:00:06]} 4. e3 {[%emt 0:00:16]} Bd6 {[%emt 0:00:03]} 5. Bg3 {[%emt 0:00:09]} O-O {[%emt 0:00:30]} 6. c4 {[%emt 0:00:17]} b6 {[%emt 0:00:18]} 7. Nc3 {[%emt 0:00:21]} Ba6 {[%emt 0:13:18]} 8. Qa4 {[%emt 0:00:37]} Bxg3 {[%emt 0:18:35]} 9. hxg3 {[%emt 0:00:13]} c6 {[%emt 0:02:28]} 10. Qb3 {[%emt 0:13:41]} Qe7 {[%emt 0:01:43]} 11. Bd3 {[%emt 0:09:14]} Rc8 {[%emt 0:01:32]} 12. Ne5 {[%emt 0:18:54]} dxc4 {[%emt 0:05:59]} 13. Bxc4 {[%emt 0:04:34]} c5 {[%emt 0:02:40]} 14. Rd1 {[%emt 0:15:19]} cxd4 {[%emt 0:13:35]} 15. Rxd4 {[%emt 0:00:18]} Bxc4 {[%emt 0:01:08]} 16. Rxc4 {[%emt 0:01:00]} Nbd7 {[%emt 0:04:41]} 17. Nxd7 {[%emt 0:06:02]} Qxd7 {[%emt 0:00:12]} 18. Rd4 {[%emt 0:04:23]} Qc6 {[%emt 0:00:03]} 19. O-O {[%emt 0:00:31]} Rd8 {[%emt 0:01:17]} 20. Rfd1 {[%emt 0:01:16]} Rxd4 {[%emt 0:00:07]} 21. Rxd4 {[%emt 0:00:06]} h5 {[%emt 0:02:50]} 22. Qd1 {[%emt 0:07:48]} 1/2-1/2

[Event "Holiday Invitational-GM 2019"]
[Site "Charlotte"]
[Date "2019.12.30"]
[Round "7.1"]
[White "Karthik Venkataraman"]
[Black "Jacobson, Brandon"]
[Result "1/2-1/2"]
[ECO "E14"]
[WhiteElo "2470"]
[BlackElo "2472"]
[Annotator "RC"]
[PlyCount "51"]
[EventDate "2019.12.26"]
[EventType "tourn"]
[EventCountry "USA"]
[SourceTitle "playchess.com"]
[Source "ChessBase"]
[SourceQuality "1"]
[TimeControl "5400+30"]

1. Nf3 {[%emt 0:00:00]} d5 {[%emt 0:04:52]} 2. e3 {[%emt 0:00:08]} Nf6 {[%emt 0:01:06]} 3. c4 {[%emt 0:00:05]} e6 {[%emt 0:00:05]} 4. Nc3 {[%emt 0:00:06]} b6 {[%emt 0:01:40]} 5. b3 {[%emt 0:00:11]} Bb7 {[%emt 0:00:04]} 6. Bb2 {[%emt 0:00:05]} Nbd7 {[%emt 0:00:08]} 7. d4 {[%emt 0:04:03]} Bd6 {[%emt 0:00:18]} 8. Bd3 {[%emt 0:01:10]} O-O {[%emt 0:00:18]} 9. O-O {[%emt 0:01:43]} a6 {[%emt 0:00:07]} 10. Rc1 {[%emt 0:03:35]} Qe7 {[%emt 0:00:22]} 11. cxd5 {[%emt 0:01:54]} exd5 {[%emt 0:00:05]} 12. Ne2 {[%emt 0:00:04]} Ne4 {[%emt 0:01:53]} 13. Qc2 {[%emt 0:00:24]} Rfe8 {[%emt 0:04:53]} 14. Ne5 {[%emt 0:06:15]} Rac8 {[%emt 0:09:14]} 15. f3 {[%emt 0:24:59]} Nef6 {[%emt 0:00:54]} 16. f4 {[%emt 0:01:57]} g6 {[%emt 0:09:58]} 17. Ng3 {[%emt 0:09:33]} c5 {[%emt 0:03:03]} 18. Qe2 {[%emt 0:00:13]} b5 {[%emt 0:03:09]} 19. dxc5 {[%emt 0:00:53]} Bxc5 {[%emt 0:02:23]} 20. Bd4 {[%emt 0:11:08]} Nxe5 {[%emt 0:04:27]} 21. Bxe5 {[%emt 0:01:08]} Nd7 {[%emt 0:07:15]} 22. Bd4 {[%emt 0:00:08]} Bxd4 {[%emt 0:01:21]} 23. exd4 {[%emt 0:00:05]} Qb4 {[%emt 0:00:46]} 24. Qf2 {[%emt 0:00:40]} Rxc1 {[%emt 0:01:24]} 25. Rxc1 {[%emt 0:00:02]} Nf6 {[%emt 0:00:06]} 26. h3 {[%emt 0:02:05]} 1/2-1/2

[Event "Holiday Invitational-GM 2019"]
[Site "Charlotte"]
[Date "2019.12.30"]
[Round "8.1"]
[White "Jacobson, Brandon"]
[Black "Kaliksteyn, Alexander"]
[Result "0-1"]
[ECO "B76"]
[WhiteElo "2472"]
[BlackElo "2381"]
[Annotator "ChessBase"]
[PlyCount "112"]
[EventDate "2019.12.26"]
[EventType "tourn"]
[EventCountry "USA"]
[SourceTitle "playchess.com"]
[Source "ChessBase"]
[SourceQuality "1"]
[TimeControl "5400+30"]

1. e4 {[%emt 0:06:59]} c5 {[%emt 0:00:00]} 2. Nf3 {[%emt 0:00:18]} d6 {[%emt 0:00:00]} 3. d4 {[%emt 0:00:08]} cxd4 {[%emt 0:00:00]} 4. Nxd4 {[%emt 0:00:05]} Nf6 {[%emt 0:00:00]} 5. Nc3 {[%emt 0:00:02]} g6 {[%emt 0:00:03]} 6. Be3 {[%emt 0:00:04]} Bg7 {[%emt 0:00:06]} 7. f3 {[%emt 0:00:03]} Nc6 {[%emt 0:00:06]} 8. Qd2 {[%emt 0:00:03]} O-O {[%emt 0:00:07]} 9. O-O-O {[%emt 0:00:04]} d5 {[%emt 0:00:18]} 10. Nxc6 {[%emt 0:00:04]} bxc6 {[%emt 0:00:06]} 11. Bc4 {[%emt 0:00:03]} e6 {[%emt 0:01:11]} 12. Bb3 {[%emt 0:00:17]} Bb7 {[%emt 0:00:18]} 13. Na4 {[%emt 0:00:47]} dxe4 {[%emt 0:12:50]} 14. Qxd8 {[%emt 0:00:30]} Raxd8 {[%emt 0:00:30]} 15. Nc5 {[%emt 0:00:30]} Ra8 {[%emt 1:21:55]} 16. Na4 {[%emt 1:28:03]} Rad8 {[%emt 0:00:00]} 17. Nc5 {[%emt 0:00:00]} Bc8 {[%emt 0:00:00]} 18. Nxe4 {[%emt 0:00:00]} Nxe4 {[%emt 0:00:00]} 19. fxe4 {[%emt 0:00:00]} a6 {[%emt 0:00:00]} 20. Bb6 {[%emt 0:00:00]} Rxd1+ {[%emt 0:00:00]} 21. Rxd1 {[%emt 0:00:00]} Bb7 {[%emt 0:00:00]} 22. Rd7 {[%emt 0:00:00]} Ba8 {[%emt 0:00:00]} 23. Bc5 {[%emt 0:00:00]} Rb8 {[%emt 0:00:00]} 24. c3 {[%emt 0:00:00]} Bf8 {[%emt 0:00:00]} 25. Bxf8 {[%emt 0:00:00]} Kxf8 {[%emt 0:00:00]} 26. e5 {[%emt 0:00:00]} c5 {[%emt 0:00:00]} 27. g3 {[%emt 0:00:00]} Rc8 {[%emt 0:00:00]} 28. Bc4 {[%emt 0:00:00]} Bc6 {[%emt 0:00:00]} 29. Ra7 {[%emt 0:00:00]} Rd8 {[%emt 0:00:00]} 30. Rxa6 {[%emt 0:00:00]} Bf3 {[%emt 0:00:00]} 31. a4 {[%emt 0:02:56]} Rd1+ {[%emt 0:00:00]} 32. Kc2 {[%emt 0:00:00]} Rh1 {[%emt 0:00:00]} 33. Kd2 {[%emt 0:01:09]} Rxh2+ {[%emt 0:00:00]} 34. Ke3 {[%emt 0:00:01]} Bh1 {[%emt 0:00:00]} 35. Rb6 {[%emt 0:00:01]} Rg2 {[%emt 0:00:00]} 36. a5 {[%emt 0:00:21]} Rxg3+ {[%emt 0:00:00]} 37. Kf2 {[%emt 0:00:01]} Rg4 {[%emt 0:00:00]} 38. Be2 {[%emt 0:00:24]} Ra4 {[%emt 0:00:00]} 39. a6 {[%emt 0:00:05]} c4 {[%emt 0:00:00]} 40. Bf3 {[%emt 0:04:58]} Bxf3 {[%emt 0:00:00]} 41. Kxf3 {[%emt 0:00:01]} Kg7 {[%emt 0:00:00]} 42. Rb4 {[%emt 0:00:23]} Rxa6 {[%emt 0:00:00]} 43. Rxc4 {[%emt 0:00:02]} Ra1 {[%emt 0:00:00]} 44. b4 {[%emt 0:00:57]} Rb1 {[%emt 0:00:00]} 45. Rc5 {[%emt 0:01:07]} g5 {[%emt 0:00:00]} 46. b5 {[%emt 0:00:44]} h5 {[%emt 0:00:00]} 47. c4 {[%emt 0:00:32]} Rb3+ {[%emt 0:00:32]} 48. Kg2 {[%emt 0:00:17]} h4 {[%emt 0:00:13]} 49. Rc8 {[%emt 0:01:52]} g4 {[%emt 0:00:42]} 50. Rd8 {[%emt 0:00:01]} Rb2+ {[%emt 0:00:17]} 51. Kg1 {[%emt 0:00:23]} Kg6 {[%emt 0:00:08]} 52. Rg8+ {[%emt 0:00:48]} Kf5 {[%emt 0:00:12]} 53. Rf8 {[%emt 0:00:04]} Kf4 {[%emt 0:01:24]} 54. Rxf7+ {[%emt 0:00:02]} Kg3 {[%emt 0:00:06]} 55. Rf1 {[%emt 0:00:48]} h3 {[%emt 0:00:32]} 56. Kh1 {[%emt 0:00:24]} h2 {[%emt 0:00:40]} 0-1

[Event "Holiday Invitational-GM 2019"]
[Site "Charlotte"]
[Date "2019.12.30"]
[Round "8.2"]
[White "Iotov, Valentin"]
[Black "Sinha, Sahil"]
[Result "1/2-1/2"]
[ECO "B51"]
[WhiteElo "2516"]
[BlackElo "2296"]
[Annotator "ChessBase"]
[PlyCount "114"]
[EventDate "2019.12.26"]
[EventType "tourn"]
[EventCountry "USA"]
[SourceTitle "playchess.com"]
[Source "ChessBase"]
[SourceQuality "1"]
[TimeControl "5400+30"]

1. e4 {[%emt 0:00:00]} c5 {[%emt 0:01:26]} 2. Nf3 {[%emt 0:00:00]} d6 {[%emt 0:00:04]} 3. Bb5+ {[%emt 0:00:00]} Nd7 {[%emt 0:00:13]} 4. c3 {[%emt 0:00:00]} Ngf6 {[%emt 0:02:02]} 5. Qe2 {[%emt 0:00:00]} a6 {[%emt 0:00:43]} 6. Ba4 {[%emt 0:00:00]} b5 {[%emt 0:00:52]} 7. Bc2 {[%emt 0:00:02]} c4 {[%emt 0:01:39]} 8. b3 {[%emt 0:03:48]} cxb3 {[%emt 0:01:45]} 9. axb3 {[%emt 0:00:10]} Bb7 {[%emt 0:00:19]} 10. O-O {[%emt 0:00:54]} e6 {[%emt 0:01:59]} 11. d4 {[%emt 0:01:28]} Be7 {[%emt 0:01:16]} 12. Nbd2 {[%emt 0:01:32]} Rc8 {[%emt 0:04:04]} 13. c4 {[%emt 0:03:01]} Qb6 {[%emt 0:01:40]} 14. Bd3 {[%emt 0:03:38]} b4 {[%emt 0:01:43]} 15. Bb2 {[%emt 0:11:50]} O-O {[%emt 0:00:49]} 16. h3 {[%emt 0:00:09]} Nh5 {[%emt 0:07:03]} 17. g3 {[%emt 0:03:07]} g6 {[%emt 0:05:09]} 18. Qe3 {[%emt 0:03:56]} e5 {[%emt 0:02:34]} 19. c5 {[%emt 0:01:29]} dxc5 {[%emt 0:03:07]} 20. Nc4 {[%emt 0:00:59]} Qe6 {[%emt 0:01:49]} 21. dxe5 {[%emt 0:06:22]} Qxh3 {[%emt 0:00:54]} 22. Rfd1 {[%emt 0:01:00]} Rcd8 {[%emt 0:10:22]} 23. Qh6 {[%emt 0:15:15]} Rfe8 {[%emt 0:10:16]} 24. Nd6 {[%emt 0:30:54]} Bf8 {[%emt 0:00:34]} 25. Qxh7+ {[%emt 0:00:23]} Kxh7 {[%emt 0:00:06]} 26. Ng5+ {[%emt 0:00:03]} Kg8 {[%emt 0:00:29]} 27. Nxh3 {[%emt 0:00:02]} Bxd6 {[%emt 0:01:12]} 28. exd6 {[%emt 0:00:02]} Bxe4 {[%emt 0:03:18]} 29. Bxe4 {[%emt 0:02:39]} Rxe4 {[%emt 0:00:06]} 30. Rxa6 {[%emt 0:00:05]} c4 {[%emt 0:01:42]} 31. bxc4 {[%emt 0:00:04]} Rxc4 {[%emt 0:00:07]} 32. Ng5 {[%emt 0:02:02]} Ng7 {[%emt 0:04:00]} 33. Rda1 {[%emt 0:02:27]} Nf5 {[%emt 0:05:16]} 34. Ra8 {[%emt 0:01:16]} Rcc8 {[%emt 0:01:38]} 35. Rxc8 {[%emt 0:00:13]} Rxc8 {[%emt 0:00:01]} 36. Ra7 {[%emt 0:00:12]} Rd8 {[%emt 0:00:13]} 37. Ne4 {[%emt 0:00:13]} Kf8 {[%emt 0:00:37]} 38. Rb7 {[%emt 0:00:58]} Nh6 {[%emt 0:01:39]} 39. Rxb4 {[%emt 0:01:55]} f5 {[%emt 0:00:44]} 40. Ng5 {[%emt 0:00:42]} Rb8 {[%emt 0:00:05]} 41. Rh4 {[%emt 0:01:20]} Rxb2 {[%emt 0:02:23]} 42. Rxh6 {[%emt 0:00:03]} Ne5 {[%emt 0:02:16]} 43. Rh8+ {[%emt 0:01:58]} Kg7 {[%emt 0:00:01]} 44. Re8 {[%emt 0:00:06]} Kf6 {[%emt 0:03:10]} 45. Nh7+ {[%emt 0:02:49]} Kg7 {[%emt 0:00:01]} 46. Re7+ {[%emt 0:00:18]} Kh6 {[%emt 0:00:23]} 47. Nf8 {[%emt 0:01:14]} Rb8 {[%emt 0:03:51]} 48. Rxe5 {[%emt 0:02:48]} Rxf8 {[%emt 0:00:05]} 49. d7 {[%emt 0:00:26]} Rd8 {[%emt 0:00:04]} 50. Re7 {[%emt 0:00:34]} g5 {[%emt 0:00:54]} 51. g4 {[%emt 0:00:32]} fxg4 {[%emt 0:00:56]} 52. Kg2 {[%emt 0:00:01]} Kg6 {[%emt 0:00:33]} 53. Re6+ {[%emt 0:00:45]} Kf7 {[%emt 0:00:14]} 54. Rd6 {[%emt 0:00:02]} Ke7 {[%emt 0:00:06]} 55. Rd1 {[%emt 0:00:03]} Rxd7 {[%emt 0:00:10]} 56. Rxd7+ {[%emt 0:00:03]} Kxd7 {[%emt 0:00:01]} 57. Kg3 {[%emt 0:00:06]} Ke6 {[%emt 0:00:02]} 1/2-1/2

[Event "Holiday Invitational-GM 2019"]
[Site "Charlotte"]
[Date "2019.12.30"]
[Round "8.3"]
[White "Steingrimsson, Hedinn"]
[Black "Karthik Venkataraman"]
[Result "1/2-1/2"]
[ECO "D32"]
[WhiteElo "2530"]
[BlackElo "2470"]
[Annotator "ChessBase"]
[PlyCount "48"]
[EventDate "2019.12.26"]
[EventType "tourn"]
[EventCountry "USA"]
[SourceTitle "playchess.com"]
[Source "ChessBase"]
[SourceQuality "1"]
[TimeControl "5400+30"]

1. Nf3 {[%emt 0:00:55]} c5 {[%emt 0:00:05]} 2. c4 {[%emt 0:00:04]} Nf6 {[%emt 0:00:10]} 3. Nc3 {[%emt 0:00:03]} Nc6 {[%emt 0:00:31]} 4. e3 {[%emt 0:00:22]} e6 {[%emt 0:00:53]} 5. d4 {[%emt 0:00:03]} d5 {[%emt 0:00:04]} 6. cxd5 {[%emt 0:00:06]} exd5 {[%emt 0:00:03]} 7. Bb5 {[%emt 0:00:19]} cxd4 {[%emt 0:00:05]} 8. Nxd4 {[%emt 0:00:02]} Bd7 {[%emt 0:00:05]} 9. O-O {[%emt 0:01:58]} Bd6 {[%emt 0:00:03]} 10. Nf3 {[%emt 0:10:25]} a6 {[%emt 0:01:03]} 11. Bxc6 {[%emt 0:11:19]} Bxc6 {[%emt 0:01:31]} 12. b3 {[%emt 0:00:51]} O-O {[%emt 0:00:06]} 13. Bb2 {[%emt 0:00:03]} Re8 {[%emt 0:01:45]} 14. Qd4 {[%emt 0:02:49]} Qe7 {[%emt 0:01:53]} 15. Rac1 {[%emt 0:02:24]} Rad8 {[%emt 0:01:37]} 16. Ne2 {[%emt 0:06:52]} Bb5 {[%emt 0:04:11]} 17. Rc2 {[%emt 0:05:30]} Qe4 {[%emt 0:16:49]} 18. Rfc1 {[%emt 0:05:53]} Qg6 {[%emt 0:00:32]} 19. Ng3 {[%emt 0:03:23]} Bc6 {[%emt 0:06:14]} 20. Nh4 {[%emt 0:05:44]} Qg5 {[%emt 0:00:28]} 21. Nf3 {[%emt 0:05:35]} Qg6 {[%emt 0:00:06]} 22. Qh4 {[%emt 0:07:25]} Ne4 {[%emt 0:01:30]} 23. Ne5 {[%emt 0:04:26]} Bxe5 {[%emt 0:01:20]} 24. Bxe5 {[%emt 0:00:03]} Nxg3 {[%emt 1:00:56] Kf1} 1/2-1/2

[Event "Holiday Invitational-GM 2019"]
[Site "Charlotte"]
[Date "2019.12.30"]
[Round "8.4"]
[White "Balakrishnan, Praveen"]
[Black "Mishra, Abhimanyu"]
[Result "1-0"]
[ECO "B48"]
[WhiteElo "2466"]
[BlackElo "2397"]
[Annotator "ChessBase"]
[PlyCount "81"]
[EventDate "2019.12.26"]
[EventType "tourn"]
[EventCountry "USA"]
[SourceTitle "playchess.com"]
[Source "ChessBase"]
[SourceQuality "1"]
[TimeControl "5400+30"]

1. e4 {[%emt 0:04:38]} c5 {[%emt 0:00:00]} 2. Nf3 {[%emt 0:00:13]} e6 {[%emt 0:00:00]} 3. d4 {[%emt 0:00:10]} cxd4 {[%emt 0:00:00]} 4. Nxd4 {[%emt 0:00:11]} Nc6 {[%emt 0:00:00]} 5. Nc3 {[%emt 0:00:12]} Qc7 {[%emt 0:00:00]} 6. Be3 {[%emt 0:00:13]} a6 {[%emt 0:00:00]} 7. Qd2 {[%emt 0:00:47]} Nf6 {[%emt 0:00:19]} 8. O-O-O {[%emt 0:00:19]} Be7 {[%emt 0:00:50]} 9. f3 {[%emt 0:00:19]} b5 {[%emt 0:00:40]} 10. Nxc6 {[%emt 0:00:29]} dxc6 {[%emt 0:01:14]} 11. g4 {[%emt 0:00:07]} O-O {[%emt 0:00:51]} 12. Qf2 {[%emt 0:00:55]} Nd7 {[%emt 0:03:59]} 13. g5 {[%emt 0:02:26]} e5 {[%emt 0:16:28]} 14. h4 {[%emt 0:06:22]} Re8 {[%emt 0:04:49]} 15. h5 {[%emt 0:07:03]} Nf8 {[%emt 0:01:55]} 16. Bd3 {[%emt 0:18:26]} a5 {[%emt 0:09:59]} 17. f4 {[%emt 0:03:40]} exf4 {[%emt 0:05:22]} 18. Bxf4 {[%emt 0:00:14]} Qa7 {[%emt 0:00:54]} 19. Qg3 {[%emt 0:06:04]} b4 {[%emt 0:08:27]} 20. Na4 {[%emt 0:05:22]} Ba6 {[%emt 0:04:40]} 21. g6 {[%emt 0:08:28]} fxg6 {[%emt 0:08:18]} 22. hxg6 {[%emt 0:07:22]} Nxg6 {[%emt 0:01:48]} 23. Bxa6 {[%emt 0:04:18]} Qxa6 {[%emt 0:00:21]} 24. Qb3+ {[%emt 0:00:26]} Kh8 {[%emt 0:02:28]} 25. Qf7 {[%emt 0:00:37]} c5 {[%emt 0:08:46]} 26. Bd6 {[%emt 0:02:31]} Bg5+ {[%emt 0:05:17]} 27. Kb1 {[%emt 0:00:11]} Qe2 {[%emt 0:05:07]} 28. Nxc5 {[%emt 0:04:41]} Rac8 {[%emt 0:04:41]} 29. Rde1 {[%emt 0:05:53]} Qd2 {[%emt 0:00:26]} 30. e5 {[%emt 0:00:34]} Bh6 {[%emt 0:02:15]} 31. Rhf1 {[%emt 0:01:56]} a4 {[%emt 0:01:45]} 32. Rd1 {[%emt 0:01:21]} Qe2 {[%emt 0:01:30]} 33. Rfe1 {[%emt 0:00:06]} Qg4 {[%emt 0:00:46]} 34. e6 {[%emt 0:03:46]} a3 {[%emt 0:01:33]} 35. e7 {[%emt 0:03:55]} Bg5 {[%emt 0:00:50]} 36. Ne6 {[%emt 0:01:38]} Bf6 {[%emt 0:00:48]} 37. Nd8 {[%emt 0:01:11]} Qd7 {[%emt 0:00:33]} 38. Bxb4 {[%emt 0:00:32]} Qb5 {[%emt 0:00:30]} 39. Rd5 {[%emt 0:01:01]} Rxe7 {[%emt 0:00:32]} 40. Rxe7 {[%emt 0:00:19]} Qf1+ {[%emt 0:00:38]} 41. Re1 {[%emt 0:00:11]} 1-0